[Event "Titled Tuesday Blitz November 07 Early 2023"]
[White "Ghosh, Chanchal Kumer"]
[Black "Cappelletto, Joshuaede"]
[WhiteFideId "10201858"]
[BlackFideId "2824383"]
[WhiteElo "1970"]
[BlackElo "2627"]
[Result "0-1"]
[Round "8"]
[TimeControl "180+1"]
[Date "2023.11.07"]
[WhiteClock "0:00:08"]
[BlackClock "0:01:26"]
[Board "166"]

1. e4 {[%clk 0:02:57]}  c5 {[%clk 0:02:57]} 2. Nf3 {[%clk 0:02:55]}  d6 {[%clk 0:02:56]} 3. d4 {[%clk 0:02:49]}  cxd4 {[%clk 0:02:56]} 4. Nxd4 {[%clk 0:02:49]}  Nf6 {[%clk 0:02:56]} 5. Nc3 {[%clk 0:02:48]}  g6 {[%clk 0:02:56]} 6. Be2 {[%clk 0:02:36]}  Bg7 {[%clk 0:02:56]} 7. Be3 {[%clk 0:02:33]}  O-O {[%clk 0:02:54]} 8. O-O {[%clk 0:02:32]}  Nc6 {[%clk 0:02:54]} 9. f4 {[%clk 0:02:27]}  Bd7 {[%clk 0:02:53]} 10. Bf3 {[%clk 0:02:18]}  Rc8 {[%clk 0:02:52]} 11. Nxc6 {[%clk 0:02:15]}  Bxc6 {[%clk 0:02:51]} 12. Qd2 {[%clk 0:02:02]}  Qa5 {[%clk 0:02:49]} 13. Rad1 {[%clk 0:01:57]}  Rfe8 {[%clk 0:02:46]} 14. Bd4 {[%clk 0:01:47]}  b5 {[%clk 0:02:33]} 15. Nd5 {[%clk 0:01:18]}  Qxd2 {[%clk 0:02:30]} 16. Nxf6+ {[%clk 0:01:15]}  exf6 {[%clk 0:02:30]} 17. Rxd2 {[%clk 0:01:12]}  Bxe4 {[%clk 0:02:30]} 18. Bxe4 {[%clk 0:01:12]}  Rxe4 {[%clk 0:02:30]} 19. Bxa7 {[%clk 0:01:13]}  f5 {[%clk 0:02:25]} 20. c3 {[%clk 0:01:11]}  Ra8 {[%clk 0:02:20]} 21. Bf2 {[%clk 0:00:51]}  Rxa2 {[%clk 0:02:17]} 22. g3 {[%clk 0:00:50]}  Bxc3 {[%clk 0:02:15]} 23. Rxd6 {[%clk 0:00:48]}  Rxb2 {[%clk 0:02:15]} 24. Rc1 {[%clk 0:00:39]}  b4 {[%clk 0:02:12]} 25. Rd8+ {[%clk 0:00:37]}  Kg7 {[%clk 0:02:12]} 26. Bc5 {[%clk 0:00:37]}  Ree2 {[%clk 0:01:59]} 27. Bf8+ {[%clk 0:00:34]}  Kf6 {[%clk 0:01:56]} 28. Rd6+ {[%clk 0:00:32]}  Re6 {[%clk 0:01:56]} 29. Rcd1 {[%clk 0:00:31]}  b3 {[%clk 0:01:42]} 30. Rxe6+ {[%clk 0:00:28]}  fxe6 {[%clk 0:01:40]} 31. Rd7 {[%clk 0:00:27]}  e5 {[%clk 0:01:38]} 32. Rxh7 {[%clk 0:00:19]}  Rc2 {[%clk 0:01:31]} 33. fxe5+ {[%clk 0:00:16]}  Bxe5 {[%clk 0:01:28]} 34. Bg7+ {[%clk 0:00:15]}  Ke6 {[%clk 0:01:28]} 35. Bxe5 {[%clk 0:00:15]}  Kxe5 {[%clk 0:01:29]} 36. Re7+ {[%clk 0:00:15]}  Kf6 {[%clk 0:01:29]} 37. Rc7 {[%clk 0:00:08]}  Rxc7 {[%clk 0:01:26]} 0-1


[Site "https://www.chess.com"]

[Event "Titled Tuesday Blitz November 07 Early 2023"]
[White "Flis, Pawel"]
[Black "rikchessmx"]
[WhiteFideId "1112864"]
[WhiteElo "2108"]
[BlackElo "2345"]
[Result "0-1"]
[Round "8"]
[TimeControl "180+1"]
[Date "2023.11.07"]
[WhiteClock "0:00:52"]
[BlackClock "0:02:10"]
[Board "167"]

1. e4 {[%clk 0:02:36]}  c5 {[%clk 0:02:52]} 2. d4 {[%clk 0:02:36]}  e6 {[%clk 0:02:52]} 3. Nf3 {[%clk 0:02:33]}  cxd4 {[%clk 0:02:52]} 4. Nxd4 {[%clk 0:02:33]}  a6 {[%clk 0:02:53]} 5. Bd3 {[%clk 0:02:32]}  Qc7 {[%clk 0:02:53]} 6. O-O {[%clk 0:02:31]}  Nf6 {[%clk 0:02:51]} 7. Qe2 {[%clk 0:02:30]}  h5 {[%clk 0:02:51]} 8. c4 {[%clk 0:02:18]}  Bc5 {[%clk 0:02:13]} 9. Nf3 {[%clk 0:02:10]}  Nc6 {[%clk 0:02:11]} 10. Nc3 {[%clk 0:02:08]}  Ng4 {[%clk 0:02:10]} 11. h3 {[%clk 0:00:52]}  Nd4 {[%clk 0:02:10]} 0-1


[Site "https://www.chess.com"]

[Event "Titled Tuesday Blitz November 07 Early 2023"]
[White "Zampronha, Wladimir Camilo"]
[Black "Winkels, Marcel"]
[WhiteFideId "2103087"]
[BlackFideId "1003887"]
[WhiteElo "2297"]
[BlackElo "2063"]
[Result "1-0"]
[Round "8"]
[TimeControl "180+1"]
[Date "2023.11.07"]
[WhiteClock "0:01:31"]
[BlackClock "0:01:38"]
[Board "170"]

1. e4 {[%clk 0:03:00]}  c5 {[%clk 0:02:59]} 2. Nf3 {[%clk 0:03:00]}  d6 {[%clk 0:02:59]} 3. d4 {[%clk 0:03:01]}  cxd4 {[%clk 0:03:00]} 4. Nxd4 {[%clk 0:03:01]}  Nf6 {[%clk 0:03:00]} 5. Nc3 {[%clk 0:03:02]}  a6 {[%clk 0:03:01]} 6. Bg5 {[%clk 0:03:02]}  e6 {[%clk 0:03:00]} 7. f4 {[%clk 0:03:02]}  Be7 {[%clk 0:03:01]} 8. Qf3 {[%clk 0:03:02]}  Qc7 {[%clk 0:03:01]} 9. O-O-O {[%clk 0:03:02]}  Nbd7 {[%clk 0:03:01]} 10. Bd3 {[%clk 0:03:02]}  h6 {[%clk 0:02:56]} 11. Bxf6 {[%clk 0:03:00]}  Bxf6 {[%clk 0:02:55]} 12. Nde2 {[%clk 0:02:58]}  b5 {[%clk 0:02:52]} 13. e5 {[%clk 0:02:42]}  Bb7 {[%clk 0:02:52]} 14. Be4 {[%clk 0:02:43]}  d5 {[%clk 0:02:44]} 15. exf6 {[%clk 0:02:40]}  dxe4 {[%clk 0:02:43]} 16. fxg7 {[%clk 0:02:37]}  Rg8 {[%clk 0:02:20]} 17. Nxe4 {[%clk 0:02:36]}  O-O-O {[%clk 0:02:03]} 18. Nd6+ {[%clk 0:01:46]}  Qxd6 {[%clk 0:02:00]} 19. Rxd6 {[%clk 0:01:42]}  Bxf3 {[%clk 0:01:59]} 20. gxf3 {[%clk 0:01:43]}  Rxg7 {[%clk 0:01:59]} 21. Rxa6 {[%clk 0:01:43]}  Rg2 {[%clk 0:01:55]} 22. Nc3 {[%clk 0:01:39]}  Kb7 {[%clk 0:01:54]} 23. Rd6 {[%clk 0:01:36]}  Kc7 {[%clk 0:01:52]} 24. Rhd1 {[%clk 0:01:36]}  b4 {[%clk 0:01:48]} 25. Nb5+ {[%clk 0:01:36]}  Kc8 {[%clk 0:01:48]} 26. Na7+ {[%clk 0:01:34]}  Kc7 {[%clk 0:01:48]} 27. Nc6 {[%clk 0:01:34]}  Nc5 {[%clk 0:01:38]} 28. Nxd8 {[%clk 0:01:31]} 1-0


[Site "https://www.chess.com"]

[Event "Titled Tuesday Blitz November 07 Early 2023"]
[White "Gyulamiryan-koryun"]
[Black "Barbot, Pierre"]
[BlackFideId "663727"]
[WhiteElo "1886"]
[BlackElo "2280"]
[Result "0-1"]
[Round "8"]
[TimeControl "180+1"]
[Date "2023.11.07"]
[WhiteClock "0:00:00"]
[BlackClock "0:00:12"]
[Board "171"]

1. e4 {[%clk 0:02:54]}  c6 {[%clk 0:03:00]} 2. Nc3 {[%clk 0:02:49]}  d5 {[%clk 0:02:59]} 3. Nf3 {[%clk 0:02:48]}  dxe4 {[%clk 0:02:58]} 4. Nxe4 {[%clk 0:02:44]}  Nf6 {[%clk 0:02:53]} 5. Ng3 {[%clk 0:02:43]}  g6 {[%clk 0:02:10]} 6. Be2 {[%clk 0:02:34]}  Bg7 {[%clk 0:02:09]} 7. O-O {[%clk 0:02:33]}  O-O {[%clk 0:02:08]} 8. c3 {[%clk 0:02:31]}  h5 {[%clk 0:02:00]} 9. h4 {[%clk 0:02:24]}  Bg4 {[%clk 0:01:55]} 10. Ng5 {[%clk 0:02:17]}  Nbd7 {[%clk 0:01:49]} 11. d4 {[%clk 0:02:14]}  Qc7 {[%clk 0:01:38]} 12. N3e4 {[%clk 0:01:58]}  Rad8 {[%clk 0:01:11]} 13. g3 {[%clk 0:01:51]}  Bxe2 {[%clk 0:01:05]} 14. Qxe2 {[%clk 0:01:49]}  Ng4 {[%clk 0:01:06]} 15. Bf4 {[%clk 0:01:29]}  e5 {[%clk 0:00:55]} 16. dxe5 {[%clk 0:01:20]}  Bxe5 {[%clk 0:00:54]} 17. Bxe5 {[%clk 0:01:02]}  Qxe5 {[%clk 0:00:55]} 18. Rae1 {[%clk 0:00:54]}  Rfe8 {[%clk 0:00:27]} 19. f4 {[%clk 0:00:49]}  Qf5 {[%clk 0:00:21]} 20. Qc4 {[%clk 0:00:38]}  Nb6 {[%clk 0:00:20]} 21. Qb3 {[%clk 0:00:29]}  Nd5 {[%clk 0:00:18]} 22. Qxb7 {[%clk 0:00:19]}  Nge3 {[%clk 0:00:18]} 23. Rf3 {[%clk 0:00:17]}  Rxe4 {[%clk 0:00:17]} 24. Nxe4 {[%clk 0:00:15]}  Qxe4 {[%clk 0:00:18]} 25. Kf2 {[%clk 0:00:14]}  Re8 {[%clk 0:00:12]} 26. Rexe3 {[%clk 0:00:04]}  Nxe3 {[%clk 0:00:12]} 27. Qd7 {[%clk 0:00:00]}  Ng4+ {[%clk 0:00:12]} 0-1


[Site "https://www.chess.com"]

[Event "Titled Tuesday Blitz November 07 Early 2023"]
[White "Hartikainen, Jarmo"]
[Black "Chxss_Khxsbu"]
[WhiteFideId "503134"]
[WhiteElo "2177"]
[BlackElo "1860"]
[Result "0-1"]
[Round "8"]
[TimeControl "180+1"]
[Date "2023.11.07"]
[WhiteClock "0:00:04"]
[BlackClock "0:00:13"]
[Board "172"]

1. e4 {[%clk 0:03:00]}  e5 {[%clk 0:02:59]} 2. Nf3 {[%clk 0:03:00]}  Nf6 {[%clk 0:02:58]} 3. d4 {[%clk 0:02:58]}  Nxe4 {[%clk 0:02:56]} 4. Bd3 {[%clk 0:02:56]}  Nc6 {[%clk 0:02:55]} 5. d5 {[%clk 0:02:43]}  Nc5 {[%clk 0:02:53]} 6. dxc6 {[%clk 0:02:40]}  e4 {[%clk 0:02:53]} 7. O-O {[%clk 0:02:12]}  exd3 {[%clk 0:02:10]} 8. cxd3 {[%clk 0:02:05]}  dxc6 {[%clk 0:02:08]} 9. Re1+ {[%clk 0:01:52]}  Be7 {[%clk 0:01:57]} 10. Ne5 {[%clk 0:01:16]}  O-O {[%clk 0:01:51]} 11. Nc3 {[%clk 0:01:15]}  Bf5 {[%clk 0:01:48]} 12. d4 {[%clk 0:01:14]}  Ne6 {[%clk 0:01:46]} 13. Be3 {[%clk 0:01:11]}  Bf6 {[%clk 0:01:42]} 14. Qf3 {[%clk 0:00:55]}  Bg6 {[%clk 0:01:33]} 15. Red1 {[%clk 0:00:53]}  Bxe5 {[%clk 0:01:24]} 16. dxe5 {[%clk 0:00:52]}  Qh4 {[%clk 0:01:22]} 17. Rd7 {[%clk 0:00:29]}  Rfd8 {[%clk 0:01:16]} 18. Rad1 {[%clk 0:00:29]}  Bh5 {[%clk 0:01:12]} 19. Rxd8+ {[%clk 0:00:22]}  Nxd8 {[%clk 0:01:11]} 20. Qf4 {[%clk 0:00:09]}  Qxf4 {[%clk 0:01:06]} 21. Bxf4 {[%clk 0:00:10]}  Bxd1 {[%clk 0:01:06]} 22. Nxd1 {[%clk 0:00:11]}  Ne6 {[%clk 0:01:06]} 23. Be3 {[%clk 0:00:11]}  Rd8 {[%clk 0:01:05]} 24. Nc3 {[%clk 0:00:12]}  b6 {[%clk 0:01:01]} 25. g3 {[%clk 0:00:11]}  Nd4 {[%clk 0:01:01]} 26. Kg2 {[%clk 0:00:11]}  c5 {[%clk 0:00:59]} 27. Ne4 {[%clk 0:00:11]}  Rd5 {[%clk 0:00:57]} 28. f4 {[%clk 0:00:10]}  Nf5 {[%clk 0:00:55]} 29. Bd2 {[%clk 0:00:08]}  Rd4 {[%clk 0:00:54]} 30. Kf3 {[%clk 0:00:08]}  Rd3+ {[%clk 0:00:51]} 31. Ke2 {[%clk 0:00:08]}  Rd8 {[%clk 0:00:48]} 32. Bc3 {[%clk 0:00:06]}  Nd4+ {[%clk 0:00:47]} 33. Ke3 {[%clk 0:00:06]}  Nc2+ {[%clk 0:00:43]} 34. Ke2 {[%clk 0:00:06]}  Nd4+ {[%clk 0:00:37]} 35. Ke3 {[%clk 0:00:06]}  Nb5 {[%clk 0:00:37]} 36. g4 {[%clk 0:00:06]}  Nxc3 {[%clk 0:00:37]} 37. Nxc3 {[%clk 0:00:07]}  c4 {[%clk 0:00:34]} 38. Ke4 {[%clk 0:00:07]}  c6 {[%clk 0:00:33]} 39. f5 {[%clk 0:00:07]}  Kf8 {[%clk 0:00:30]} 40. Ke3 {[%clk 0:00:06]}  Ke7 {[%clk 0:00:30]} 41. h4 {[%clk 0:00:06]}  Rd3+ {[%clk 0:00:30]} 42. Ke2 {[%clk 0:00:05]}  Rg3 {[%clk 0:00:29]} 43. f6+ {[%clk 0:00:03]}  gxf6 {[%clk 0:00:27]} 44. exf6+ {[%clk 0:00:04]}  Ke6 {[%clk 0:00:27]} 45. Ne4 {[%clk 0:00:03]}  Rxg4 {[%clk 0:00:25]} 46. Ng5+ {[%clk 0:00:04]}  Kxf6 {[%clk 0:00:25]} 47. Nxh7+ {[%clk 0:00:04]}  Kg7 {[%clk 0:00:23]} 48. Ng5 {[%clk 0:00:05]}  Rxh4 {[%clk 0:00:22]} 49. Nf3 {[%clk 0:00:05]}  Re4+ {[%clk 0:00:22]} 50. Kd2 {[%clk 0:00:05]}  f5 {[%clk 0:00:21]} 51. Ng5 {[%clk 0:00:05]}  Re5 {[%clk 0:00:19]} 52. Nf3 {[%clk 0:00:04]}  Rd5+ {[%clk 0:00:17]} 53. Ke2 {[%clk 0:00:04]}  Kf6 {[%clk 0:00:17]} 54. Ne1 {[%clk 0:00:03]}  f4 {[%clk 0:00:17]} 55. Nf3 {[%clk 0:00:03]}  Kf5 {[%clk 0:00:17]} 56. Kf2 {[%clk 0:00:04]}  Ke4 {[%clk 0:00:16]} 57. Ng5+ {[%clk 0:00:04]}  Rxg5 {[%clk 0:00:15]} 58. Kf1 {[%clk 0:00:02]}  f3 {[%clk 0:00:16]} 59. Kf2 {[%clk 0:00:03]}  Rg2+ {[%clk 0:00:16]} 60. Kf1 {[%clk 0:00:03]}  Ke3 {[%clk 0:00:17]} 61. a3 {[%clk 0:00:03]}  Rxb2 {[%clk 0:00:16]} 62. Kg1 {[%clk 0:00:03]}  f2+ {[%clk 0:00:15]} 63. Kg2 {[%clk 0:00:04]}  Rb1 {[%clk 0:00:14]} 64. Kg3 {[%clk 0:00:05]}  f1=Q {[%clk 0:00:14]} 65. Kg4 {[%clk 0:00:06]}  Qf4+ {[%clk 0:00:14]} 66. Kh3 {[%clk 0:00:04]}  Rh1+ {[%clk 0:00:14]} 67. Kg2 {[%clk 0:00:04]}  Qh2# {[%clk 0:00:13]} 0-1


[Site "https://www.chess.com"]

[Event "Titled Tuesday Blitz November 07 Early 2023"]
[White "Todev, Simeon"]
[Black "Petersson, Kjell"]
[WhiteFideId "2925133"]
[BlackFideId "1705148"]
[WhiteElo "2348"]
[BlackElo "2135"]
[Result "1-0"]
[Round "8"]
[TimeControl "180+1"]
[Date "2023.11.07"]
[WhiteClock "0:00:04"]
[BlackClock "0:00:03"]
[Board "173"]

1. e4 {[%clk 0:02:56]}  c5 {[%clk 0:02:59]} 2. Nf3 {[%clk 0:02:51]}  d6 {[%clk 0:02:59]} 3. c3 {[%clk 0:02:43]}  Nf6 {[%clk 0:02:57]} 4. Bd3 {[%clk 0:02:41]}  Bg4 {[%clk 0:02:55]} 5. Bc2 {[%clk 0:02:40]}  Nc6 {[%clk 0:02:54]} 6. O-O {[%clk 0:02:41]}  g6 {[%clk 0:02:53]} 7. d3 {[%clk 0:02:39]}  Bg7 {[%clk 0:02:53]} 8. Nbd2 {[%clk 0:02:38]}  O-O {[%clk 0:02:52]} 9. Re1 {[%clk 0:02:38]}  Nd7 {[%clk 0:02:47]} 10. h3 {[%clk 0:02:37]}  Bxf3 {[%clk 0:02:45]} 11. Nxf3 {[%clk 0:02:37]}  e5 {[%clk 0:02:41]} 12. Be3 {[%clk 0:02:34]}  b6 {[%clk 0:02:39]} 13. d4 {[%clk 0:02:30]}  exd4 {[%clk 0:02:37]} 14. cxd4 {[%clk 0:02:28]}  Rc8 {[%clk 0:02:18]} 15. Ba4 {[%clk 0:02:08]}  Re8 {[%clk 0:01:54]} 16. Bg5 {[%clk 0:01:55]}  Qc7 {[%clk 0:01:46]} 17. dxc5 {[%clk 0:01:52]}  dxc5 {[%clk 0:01:41]} 18. Qd2 {[%clk 0:01:49]}  Nd4 {[%clk 0:01:31]} 19. Nxd4 {[%clk 0:01:35]}  Bxd4 {[%clk 0:01:31]} 20. Rad1 {[%clk 0:01:31]}  a6 {[%clk 0:01:15]} 21. Bb3 {[%clk 0:01:06]}  Nf6 {[%clk 0:01:09]} 22. Qd3 {[%clk 0:00:51]}  Rcd8 {[%clk 0:01:00]} 23. Qf3 {[%clk 0:00:41]}  Qe5 {[%clk 0:00:53]} 24. Bf4 {[%clk 0:00:37]}  Qe7 {[%clk 0:00:52]} 25. e5 {[%clk 0:00:32]}  Nh5 {[%clk 0:00:50]} 26. e6 {[%clk 0:00:13]}  f5 {[%clk 0:00:45]} 27. Bg5 {[%clk 0:00:11]}  Bf6 {[%clk 0:00:40]} 28. Rd7 {[%clk 0:00:07]}  Bxg5 {[%clk 0:00:18]} 29. Rxe7 {[%clk 0:00:08]}  Rxe7 {[%clk 0:00:17]} 30. Rd1 {[%clk 0:00:06]}  Rde8 {[%clk 0:00:16]} 31. Rd7 {[%clk 0:00:06]}  Nf6 {[%clk 0:00:14]} 32. Rxe7 {[%clk 0:00:06]}  Rxe7 {[%clk 0:00:15]} 33. Qa8+ {[%clk 0:00:06]}  Re8 {[%clk 0:00:14]} 34. Qxa6 {[%clk 0:00:07]}  Rb8 {[%clk 0:00:10]} 35. Qa7 {[%clk 0:00:05]}  Re8 {[%clk 0:00:09]} 36. Qf7+ {[%clk 0:00:05]}  Kh8 {[%clk 0:00:08]} 37. e7 {[%clk 0:00:05]}  b5 {[%clk 0:00:06]} 38. Qf8+ {[%clk 0:00:02]}  Rxf8 {[%clk 0:00:03]} 39. exf8=Q+ {[%clk 0:00:03]}  Ng8 {[%clk 0:00:03]} 40. Qxg8# {[%clk 0:00:04]} 1-0


[Site "https://www.chess.com"]

[Event "Titled Tuesday Blitz November 07 Early 2023"]
[White "abelmat"]
[Black "Awoki, Daniel Teidi"]
[BlackFideId "2100827"]
[WhiteElo "1964"]
[BlackElo "2275"]
[Result "0-1"]
[Round "8"]
[TimeControl "180+1"]
[Date "2023.11.07"]
[WhiteClock "0:00:45"]
[BlackClock "0:01:44"]
[Board "175"]

1. d4 {[%clk 0:03:00]}  Nf6 {[%clk 0:03:00]} 2. c4 {[%clk 0:03:00]}  g6 {[%clk 0:03:01]} 3. Nc3 {[%clk 0:03:00]}  d5 {[%clk 0:03:01]} 4. g3 {[%clk 0:02:59]}  Bg7 {[%clk 0:03:01]} 5. Bg2 {[%clk 0:02:59]}  dxc4 {[%clk 0:02:56]} 6. Nf3 {[%clk 0:03:00]}  O-O {[%clk 0:02:54]} 7. O-O {[%clk 0:03:01]}  c5 {[%clk 0:02:54]} 8. d5 {[%clk 0:02:51]}  e6 {[%clk 0:02:42]} 9. dxe6 {[%clk 0:02:39]}  Bxe6 {[%clk 0:02:41]} 10. Be3 {[%clk 0:02:39]}  Qa5 {[%clk 0:02:37]} 11. Ng5 {[%clk 0:02:31]}  Nc6 {[%clk 0:02:34]} 12. Nxe6 {[%clk 0:02:18]}  fxe6 {[%clk 0:02:33]} 13. Qd6 {[%clk 0:02:18]}  Rfe8 {[%clk 0:02:23]} 14. Qxc5 {[%clk 0:02:10]}  Qxc5 {[%clk 0:02:20]} 15. Bxc5 {[%clk 0:02:11]}  Rac8 {[%clk 0:02:20]} 16. Be3 {[%clk 0:01:51]}  a6 {[%clk 0:02:15]} 17. Rad1 {[%clk 0:01:44]}  Kf7 {[%clk 0:02:07]} 18. Na4 {[%clk 0:01:40]}  b5 {[%clk 0:02:03]} 19. Nc5 {[%clk 0:01:34]}  a5 {[%clk 0:01:59]} 20. Nd7 {[%clk 0:01:28]}  Nxd7 {[%clk 0:01:55]} 21. Rxd7+ {[%clk 0:01:27]}  Re7 {[%clk 0:01:56]} 22. Rfd1 {[%clk 0:01:24]}  Ne5 {[%clk 0:01:53]} 23. Bg5 {[%clk 0:01:19]}  Rxd7 {[%clk 0:01:52]} 24. Rxd7+ {[%clk 0:01:16]}  Nxd7 {[%clk 0:01:53]} 25. Bc1 {[%clk 0:01:09]}  b4 {[%clk 0:01:51]} 26. b3 {[%clk 0:01:06]}  c3 {[%clk 0:01:51]} 27. Bb7 {[%clk 0:01:02]}  Rc7 {[%clk 0:01:51]} 28. Ba6 {[%clk 0:01:02]}  Nc5 {[%clk 0:01:50]} 29. Bb5 {[%clk 0:01:03]}  Rb7 {[%clk 0:01:46]} 30. Bc4 {[%clk 0:01:02]}  Rd7 {[%clk 0:01:46]} 31. Be3 {[%clk 0:01:02]}  Rd1+ {[%clk 0:01:43]} 32. Kg2 {[%clk 0:00:45]}  c2 {[%clk 0:01:44]} 0-1


[Site "https://www.chess.com"]

[Event "Titled Tuesday Blitz November 07 Early 2023"]
[White "Kiseljova, Marya"]
[Black "Viasus, Juan Diego"]
[WhiteFideId "4155009"]
[BlackFideId "4464346"]
[WhiteElo "2205"]
[BlackElo "1412"]
[Result "1-0"]
[Round "8"]
[TimeControl "180+1"]
[Date "2023.11.07"]
[WhiteClock "0:00:03"]
[BlackClock "0:00:00"]
[Board "176"]

1. d4 {[%clk 0:03:00]}  Nf6 {[%clk 0:02:59]} 2. c4 {[%clk 0:02:59]}  c5 {[%clk 0:02:59]} 3. d5 {[%clk 0:02:59]}  b5 {[%clk 0:02:59]} 4. Qc2 {[%clk 0:03:00]}  g6 {[%clk 0:02:59]} 5. e4 {[%clk 0:03:00]}  d6 {[%clk 0:02:57]} 6. Nf3 {[%clk 0:02:59]}  Bg7 {[%clk 0:02:57]} 7. Nc3 {[%clk 0:02:54]}  b4 {[%clk 0:02:56]} 8. Nd1 {[%clk 0:02:50]}  O-O {[%clk 0:02:55]} 9. Bd3 {[%clk 0:02:50]}  Nbd7 {[%clk 0:02:55]} 10. O-O {[%clk 0:02:48]}  a5 {[%clk 0:02:55]} 11. a3 {[%clk 0:02:45]}  a4 {[%clk 0:02:48]} 12. axb4 {[%clk 0:02:44]}  cxb4 {[%clk 0:02:44]} 13. Rxa4 {[%clk 0:02:44]}  Rxa4 {[%clk 0:02:38]} 14. Qxa4 {[%clk 0:02:44]}  Nc5 {[%clk 0:02:38]} 15. Qc2 {[%clk 0:02:44]}  b3 {[%clk 0:02:36]} 16. Qb1 {[%clk 0:02:42]}  Nxd3 {[%clk 0:02:34]} 17. Qxd3 {[%clk 0:02:42]}  Ba6 {[%clk 0:02:34]} 18. Qxb3 {[%clk 0:02:41]}  Nxe4 {[%clk 0:02:34]} 19. Qc2 {[%clk 0:02:33]}  f5 {[%clk 0:02:31]} 20. Re1 {[%clk 0:02:21]}  Qa5 {[%clk 0:02:25]} 21. Bd2 {[%clk 0:02:01]}  Nxd2 {[%clk 0:02:17]} 22. Nxd2 {[%clk 0:02:02]}  Rc8 {[%clk 0:02:16]} 23. Rxe7 {[%clk 0:01:57]}  Rb8 {[%clk 0:02:08]} 24. b3 {[%clk 0:01:55]}  Bh6 {[%clk 0:02:00]} 25. Nf3 {[%clk 0:01:47]}  Qa1 {[%clk 0:01:12]} 26. h4 {[%clk 0:01:38]}  Qa3 {[%clk 0:01:07]} 27. Nd4 {[%clk 0:01:25]}  Qa1 {[%clk 0:00:40]} 28. Ne6 {[%clk 0:01:12]}  Qe5 {[%clk 0:00:34]} 29. Nc3 {[%clk 0:00:41]}  Qe1+ {[%clk 0:00:17]} 30. Kh2 {[%clk 0:00:41]}  Bf4+ {[%clk 0:00:18]} 31. g3 {[%clk 0:00:35]}  Be5 {[%clk 0:00:16]} 32. Nd1 {[%clk 0:00:23]}  f4 {[%clk 0:00:15]} 33. Kg2 {[%clk 0:00:16]}  fxg3 {[%clk 0:00:15]} 34. Qd3 {[%clk 0:00:06]}  Rf8 {[%clk 0:00:12]} 35. f3 {[%clk 0:00:04]}  Rf7 {[%clk 0:00:00]} 36. Re8+ {[%clk 0:00:03]} 1-0


[Site "https://www.chess.com"]

[Event "Titled Tuesday Blitz November 07 Early 2023"]
[White "Bluebaum, Matthias"]
[Black "Sethuraman, S.P."]
[WhiteFideId "24651516"]
[BlackFideId "5021596"]
[WhiteElo "3074"]
[BlackElo "2919"]
[Result "1-0"]
[Round "9"]
[TimeControl "180+1"]
[Date "2023.11.07"]
[WhiteClock "0:01:58"]
[BlackClock "0:00:16"]
[Board "2"]

1. d4 {[%clk 0:03:00]}  d5 {[%clk 0:02:59]} 2. c4 {[%clk 0:03:01]}  e6 {[%clk 0:03:00]} 3. Nc3 {[%clk 0:03:01]}  Nf6 {[%clk 0:02:59]} 4. cxd5 {[%clk 0:03:01]}  exd5 {[%clk 0:02:59]} 5. Bg5 {[%clk 0:03:02]}  Bb4 {[%clk 0:03:00]} 6. Qb3 {[%clk 0:03:02]}  c5 {[%clk 0:02:53]} 7. dxc5 {[%clk 0:03:01]}  Nc6 {[%clk 0:02:53]} 8. O-O-O {[%clk 0:03:00]}  Qa5 {[%clk 0:02:50]} 9. Bxf6 {[%clk 0:03:00]}  gxf6 {[%clk 0:02:50]} 10. Nxd5 {[%clk 0:03:00]}  Qxc5+ {[%clk 0:02:28]} 11. Qc2 {[%clk 0:02:59]}  Qxc2+ {[%clk 0:01:59]} 12. Kxc2 {[%clk 0:03:00]}  Bf5+ {[%clk 0:02:00]} 13. Kc1 {[%clk 0:03:00]}  Rc8 {[%clk 0:01:52]} 14. Nxf6+ {[%clk 0:02:57]}  Kf8 {[%clk 0:01:43]} 15. e4 {[%clk 0:02:57]}  Be7 {[%clk 0:01:24]} 16. exf5 {[%clk 0:02:52]}  Bxf6 {[%clk 0:01:24]} 17. Kb1 {[%clk 0:02:52]}  Nd4 {[%clk 0:01:15]} 18. Bd3 {[%clk 0:02:46]}  Rg8 {[%clk 0:01:15]} 19. g3 {[%clk 0:02:41]}  Rc5 {[%clk 0:01:15]} 20. Ne2 {[%clk 0:02:31]}  Nxe2 {[%clk 0:01:13]} 21. Bxe2 {[%clk 0:02:32]}  Rxf5 {[%clk 0:01:14]} 22. f4 {[%clk 0:02:33]}  b5 {[%clk 0:00:46]} 23. Bd3 {[%clk 0:02:28]}  Rh5 {[%clk 0:00:43]} 24. Be2 {[%clk 0:02:19]}  Rc5 {[%clk 0:00:43]} 25. Rc1 {[%clk 0:02:19]}  Rxc1+ {[%clk 0:00:37]} 26. Rxc1 {[%clk 0:02:20]}  Kg7 {[%clk 0:00:37]} 27. Rc7 {[%clk 0:02:16]}  Re8 {[%clk 0:00:31]} 28. Bxb5 {[%clk 0:02:16]}  Rb8 {[%clk 0:00:31]} 29. Bc4 {[%clk 0:02:17]}  Rxb2+ {[%clk 0:00:30]} 30. Kc1 {[%clk 0:02:17]}  Rxh2 {[%clk 0:00:29]} 31. Rxf7+ {[%clk 0:02:16]}  Kg6 {[%clk 0:00:29]} 32. Rxa7 {[%clk 0:02:12]}  Bd4 {[%clk 0:00:27]} 33. Bd3+ {[%clk 0:02:08]}  Kf6 {[%clk 0:00:27]} 34. Rxh7 {[%clk 0:02:07]}  Rxh7 {[%clk 0:00:26]} 35. Bxh7 {[%clk 0:02:07]}  Bf2 {[%clk 0:00:26]} 36. g4 {[%clk 0:02:07]}  Be3+ {[%clk 0:00:26]} 37. Kc2 {[%clk 0:02:07]}  Bxf4 {[%clk 0:00:27]} 38. Kd3 {[%clk 0:02:07]}  Ke5 {[%clk 0:00:19]} 39. Kc4 {[%clk 0:02:04]}  Kd6 {[%clk 0:00:17]} 40. a4 {[%clk 0:02:03]}  Bd2 {[%clk 0:00:17]} 41. Kb5 {[%clk 0:01:59]}  Kc7 {[%clk 0:00:17]} 42. a5 {[%clk 0:01:57]}  Be3 {[%clk 0:00:17]} 43. Be4 {[%clk 0:01:55]}  Bd2 {[%clk 0:00:17]} 44. a6 {[%clk 0:01:54]}  Kb8 {[%clk 0:00:16]} 45. Kc6 {[%clk 0:01:53]}  Ka7 {[%clk 0:00:16]} 46. Bd3 {[%clk 0:01:53]}  Bg5 {[%clk 0:00:16]} 47. Kd5 {[%clk 0:01:54]}  Bd2 {[%clk 0:00:16]} 48. Ke6 {[%clk 0:01:54]}  Kb6 {[%clk 0:00:17]} 49. Kf5 {[%clk 0:01:55]}  Kc7 {[%clk 0:00:17]} 50. g5 {[%clk 0:01:56]}  Bc3 {[%clk 0:00:18]} 51. Ke6 {[%clk 0:01:56]}  Kb6 {[%clk 0:00:17]} 52. g6 {[%clk 0:01:57]}  Bg7 {[%clk 0:00:17]} 53. Kf7 {[%clk 0:01:57]}  Ba1 {[%clk 0:00:16]} 54. g7 {[%clk 0:01:58]} 1-0


[Site "https://www.chess.com"]